[Event "Titled Tuesday Blitz August 15 Late 2023"]
[White "sebastianmarinp"]
[Black "Mickiewicz, Piotr"]
[BlackFideId "1114891"]
[WhiteElo "2395"]
[BlackElo "2506"]
[Result "1-0"]
[Round "8"]
[TimeControl "180+1"]
[Date "2023.08.15"]
[WhiteClock "0:00:48"]
[BlackClock "0:00:55"]
[Board "89"]

1. e4 {[%clk 0:03:00]}  c5 {[%clk 0:02:59]} 2. Nf3 {[%clk 0:02:58]}  Nc6 {[%clk 0:03:00]} 3. Bb5 {[%clk 0:02:58]}  g6 {[%clk 0:02:57]} 4. Bxc6 {[%clk 0:02:57]}  dxc6 {[%clk 0:02:58]} 5. O-O {[%clk 0:02:58]}  Bg4 {[%clk 0:02:55]} 6. h3 {[%clk 0:02:56]}  Bxf3 {[%clk 0:02:55]} 7. Qxf3 {[%clk 0:02:57]}  Bg7 {[%clk 0:02:55]} 8. d3 {[%clk 0:02:57]}  e5 {[%clk 0:02:53]} 9. Nc3 {[%clk 0:02:55]}  Nf6 {[%clk 0:02:48]} 10. Be3 {[%clk 0:02:54]}  Nd7 {[%clk 0:02:45]} 11. Qg3 {[%clk 0:02:48]}  O-O {[%clk 0:02:42]} 12. f4 {[%clk 0:02:45]}  exf4 {[%clk 0:02:41]} 13. Bxf4 {[%clk 0:02:45]}  b6 {[%clk 0:02:33]} 14. Bc7 {[%clk 0:02:44]}  Qc8 {[%clk 0:02:30]} 15. Bd6 {[%clk 0:02:43]}  Re8 {[%clk 0:02:27]} 16. Qf3 {[%clk 0:02:33]}  f6 {[%clk 0:02:25]} 17. Qg4 {[%clk 0:02:22]}  Ne5 {[%clk 0:02:21]} 18. Qxc8 {[%clk 0:02:21]}  Raxc8 {[%clk 0:02:22]} 19. Bxe5 {[%clk 0:02:21]}  Rxe5 {[%clk 0:02:22]} 20. Nd1 {[%clk 0:02:10]}  c4 {[%clk 0:02:17]} 21. Ne3 {[%clk 0:02:02]}  cxd3 {[%clk 0:02:15]} 22. cxd3 {[%clk 0:02:03]}  Rd8 {[%clk 0:02:09]} 23. Rad1 {[%clk 0:01:56]}  b5 {[%clk 0:02:04]} 24. Ng4 {[%clk 0:01:53]}  Re6 {[%clk 0:02:03]} 25. d4 {[%clk 0:01:38]}  Rxe4 {[%clk 0:02:02]} 26. Nxf6+ {[%clk 0:01:37]}  Bxf6 {[%clk 0:02:01]} 27. Rxf6 {[%clk 0:01:37]}  c5 {[%clk 0:01:56]} 28. d5 {[%clk 0:01:36]}  c4 {[%clk 0:01:52]} 29. d6 {[%clk 0:01:29]}  b4 {[%clk 0:01:49]} 30. d7 {[%clk 0:01:28]}  Re2 {[%clk 0:01:34]} 31. Rc6 {[%clk 0:01:27]}  Kf7 {[%clk 0:01:33]} 32. Rxc4 {[%clk 0:01:26]}  Rxb2 {[%clk 0:01:32]} 33. Rf4+ {[%clk 0:01:25]}  Kg7 {[%clk 0:01:28]} 34. Re4 {[%clk 0:01:21]}  Kf7 {[%clk 0:01:18]} 35. Rf1+ {[%clk 0:01:21]}  Kg7 {[%clk 0:01:15]} 36. Re7+ {[%clk 0:01:20]}  Kh6 {[%clk 0:01:12]} 37. Rff7 {[%clk 0:01:20]}  Rd2 {[%clk 0:01:07]} 38. h4 {[%clk 0:01:03]}  Kh5 {[%clk 0:01:06]} 39. Rxh7+ {[%clk 0:00:59]}  Kg4 {[%clk 0:01:06]} 40. Kh2 {[%clk 0:01:00]}  a5 {[%clk 0:01:03]} 41. Re4+ {[%clk 0:00:49]}  Kf5 {[%clk 0:00:59]} 42. Ree7 {[%clk 0:00:48]}  a4 {[%clk 0:00:58]} 43. Rhf7+ {[%clk 0:00:47]}  Kg4 {[%clk 0:00:55]} 44. Re4+ {[%clk 0:00:47]}  Kh5 {[%clk 0:00:55]} 45. Rh7# {[%clk 0:00:48]} 1-0


[Site "https://www.chess.com"]

[Event "Titled Tuesday Blitz August 15 Late 2023"]
[White "Arutla, Aditya"]
[Black "Mikhalsky, Vladimir"]
[WhiteFideId "30961998"]
[BlackFideId "14144352"]
[WhiteElo "2495"]
[BlackElo "2391"]
[Result "0-1"]
[Round "8"]
[TimeControl "180+1"]
[Date "2023.08.15"]
[WhiteClock "0:00:12"]
[BlackClock "0:00:19"]
[Board "91"]

1. d4 {[%clk 0:03:00]}  Nf6 {[%clk 0:02:54]} 2. Bf4 {[%clk 0:03:00]}  c5 {[%clk 0:02:53]} 3. d5 {[%clk 0:03:00]}  g6 {[%clk 0:02:52]} 4. Nc3 {[%clk 0:02:58]}  Bg7 {[%clk 0:02:51]} 5. e4 {[%clk 0:02:56]}  O-O {[%clk 0:02:51]} 6. Nf3 {[%clk 0:02:53]}  d6 {[%clk 0:02:48]} 7. Bc4 {[%clk 0:02:51]}  b5 {[%clk 0:02:45]} 8. Bxb5 {[%clk 0:02:44]}  Nxe4 {[%clk 0:02:44]} 9. Nxe4 {[%clk 0:02:35]}  Qa5+ {[%clk 0:02:44]} 10. Nfd2 {[%clk 0:02:21]}  Qxb5 {[%clk 0:02:41]} 11. Rb1 {[%clk 0:02:12]}  c4 {[%clk 0:02:30]} 12. Nf3 {[%clk 0:02:07]}  Bb7 {[%clk 0:02:24]} 13. O-O {[%clk 0:01:49]}  Qxd5 {[%clk 0:02:22]} 14. Qxd5 {[%clk 0:01:48]}  Bxd5 {[%clk 0:02:21]} 15. Ned2 {[%clk 0:01:47]}  Nc6 {[%clk 0:02:17]} 16. b3 {[%clk 0:01:43]}  c3 {[%clk 0:02:17]} 17. Nc4 {[%clk 0:01:42]}  Bxc4 {[%clk 0:02:10]} 18. bxc4 {[%clk 0:01:43]}  Na5 {[%clk 0:02:09]} 19. c5 {[%clk 0:01:38]}  e5 {[%clk 0:02:01]} 20. Bc1 {[%clk 0:01:28]}  d5 {[%clk 0:01:58]} 21. Rd1 {[%clk 0:01:22]}  Rfd8 {[%clk 0:01:54]} 22. Ba3 {[%clk 0:01:19]}  Nc6 {[%clk 0:01:33]} 23. Rb7 {[%clk 0:01:07]}  d4 {[%clk 0:01:31]} 24. Ng5 {[%clk 0:01:01]}  Rf8 {[%clk 0:01:24]} 25. f3 {[%clk 0:00:56]}  Bh6 {[%clk 0:01:21]} 26. Ne4 {[%clk 0:00:55]}  Rab8 {[%clk 0:01:20]} 27. Rdb1 {[%clk 0:00:55]}  Rxb7 {[%clk 0:01:18]} 28. Rxb7 {[%clk 0:00:55]}  Rb8 {[%clk 0:01:12]} 29. Rxb8+ {[%clk 0:00:50]}  Nxb8 {[%clk 0:01:12]} 30. Kf2 {[%clk 0:00:24]}  Nc6 {[%clk 0:01:09]} 31. Ke2 {[%clk 0:00:23]}  f5 {[%clk 0:01:07]} 32. Nd6 {[%clk 0:00:22]}  Bf8 {[%clk 0:01:04]} 33. Kd3 {[%clk 0:00:19]}  Bxd6 {[%clk 0:01:01]} 34. cxd6 {[%clk 0:00:20]}  Kf7 {[%clk 0:00:58]} 35. Kc4 {[%clk 0:00:19]}  Ke6 {[%clk 0:00:57]} 36. Kb5 {[%clk 0:00:20]}  Nd8 {[%clk 0:00:51]} 37. Kc5 {[%clk 0:00:19]}  Nb7+ {[%clk 0:00:47]} 38. Kc6 {[%clk 0:00:19]}  Nd8+ {[%clk 0:00:46]} 39. Kc7 {[%clk 0:00:19]}  Nf7 {[%clk 0:00:46]} 40. Bc5 {[%clk 0:00:12]}  d3 {[%clk 0:00:43]} 41. cxd3 {[%clk 0:00:11]}  c2 {[%clk 0:00:43]} 42. Ba3 {[%clk 0:00:12]}  Nxd6 {[%clk 0:00:43]} 43. Kb8 {[%clk 0:00:10]}  a5 {[%clk 0:00:42]} 44. Bc1 {[%clk 0:00:09]}  Nb5 {[%clk 0:00:40]} 45. Kb7 {[%clk 0:00:09]}  Nd4 {[%clk 0:00:40]} 46. Ka6 {[%clk 0:00:10]}  a4 {[%clk 0:00:40]} 47. Ka5 {[%clk 0:00:09]}  Ne2 {[%clk 0:00:38]} 48. Bd2 {[%clk 0:00:09]}  c1=Q {[%clk 0:00:38]} 49. Bxc1 {[%clk 0:00:10]}  Nxc1 {[%clk 0:00:38]} 50. a3 {[%clk 0:00:07]}  Nxd3 {[%clk 0:00:37]} 51. Kxa4 {[%clk 0:00:08]}  Ne1 {[%clk 0:00:37]} 52. Kb5 {[%clk 0:00:08]}  Kd7 {[%clk 0:00:37]} 53. Kc5 {[%clk 0:00:08]}  Nxg2 {[%clk 0:00:36]} 54. Kd5 {[%clk 0:00:08]}  Nh4 {[%clk 0:00:28]} 55. Kxe5 {[%clk 0:00:08]}  Nxf3+ {[%clk 0:00:28]} 56. Kf4 {[%clk 0:00:06]}  Nxh2 {[%clk 0:00:28]} 57. a4 {[%clk 0:00:05]}  Kc6 {[%clk 0:00:28]} 58. Kg5 {[%clk 0:00:06]}  Ng4 {[%clk 0:00:27]} 59. Kf4 {[%clk 0:00:05]}  Kb6 {[%clk 0:00:27]} 60. Kf3 {[%clk 0:00:06]}  Ka5 {[%clk 0:00:27]} 61. Ke2 {[%clk 0:00:07]}  Kxa4 {[%clk 0:00:27]} 62. Kd3 {[%clk 0:00:08]}  Kb5 {[%clk 0:00:27]} 63. Kd4 {[%clk 0:00:09]}  Kc6 {[%clk 0:00:27]} 64. Kc4 {[%clk 0:00:09]}  Kd6 {[%clk 0:00:27]} 65. Kd4 {[%clk 0:00:09]}  g5 {[%clk 0:00:27]} 66. Kd3 {[%clk 0:00:10]}  f4 {[%clk 0:00:28]} 67. Ke4 {[%clk 0:00:10]}  Ke6 {[%clk 0:00:28]} 68. Kf3 {[%clk 0:00:10]}  Kf5 {[%clk 0:00:28]} 69. Kg2 {[%clk 0:00:11]}  Ke4 {[%clk 0:00:28]} 70. Kf1 {[%clk 0:00:12]}  f3 {[%clk 0:00:27]} 71. Ke1 {[%clk 0:00:12]}  Ke3 {[%clk 0:00:27]} 72. Kf1 {[%clk 0:00:13]}  f2 {[%clk 0:00:27]} 73. Kg2 {[%clk 0:00:14]}  Ke2 {[%clk 0:00:27]} 74. Kg3 {[%clk 0:00:14]}  Ne5 {[%clk 0:00:25]} 75. Kh2 {[%clk 0:00:12]}  f1=N+ {[%clk 0:00:24]} 76. Kg2 {[%clk 0:00:12]}  h5 {[%clk 0:00:23]} 77. Kh3 {[%clk 0:00:12]}  Ng6 {[%clk 0:00:22]} 78. Kg2 {[%clk 0:00:12]}  Nf4+ {[%clk 0:00:21]} 79. Kh1 {[%clk 0:00:10]}  g4 {[%clk 0:00:22]} 80. Kg1 {[%clk 0:00:11]}  h4 {[%clk 0:00:22]} 81. Kh1 {[%clk 0:00:11]}  g3 {[%clk 0:00:22]} 82. Kg1 {[%clk 0:00:12]}  h3 {[%clk 0:00:21]} 83. Kh1 {[%clk 0:00:12]}  g2+ {[%clk 0:00:20]} 84. Kg1 {[%clk 0:00:12]}  h2# {[%clk 0:00:19]} 0-1


[Site "https://www.chess.com"]

[Event "Titled Tuesday Blitz August 15 Late 2023"]
[White "Avila Rodriguez, Joshua Ad"]
[Black "petr577"]
[WhiteFideId "5126444"]
[WhiteElo "2487"]
[BlackElo "2374"]
[Result "1-0"]
[Round "8"]
[TimeControl "180+1"]
[Date "2023.08.15"]
[WhiteClock "0:01:21"]
[BlackClock "0:00:07"]
[Board "92"]

1. d4 {[%clk 0:02:54]}  Nf6 {[%clk 0:02:58]} 2. c4 {[%clk 0:02:55]}  e5 {[%clk 0:02:58]} 3. dxe5 {[%clk 0:02:54]}  Ng4 {[%clk 0:02:58]} 4. Nf3 {[%clk 0:02:55]}  Bc5 {[%clk 0:02:58]} 5. e3 {[%clk 0:02:55]}  Nc6 {[%clk 0:02:59]} 6. Be2 {[%clk 0:02:53]}  O-O {[%clk 0:02:59]} 7. O-O {[%clk 0:02:52]}  Re8 {[%clk 0:02:59]} 8. Nc3 {[%clk 0:02:49]}  Ngxe5 {[%clk 0:02:59]} 9. Nxe5 {[%clk 0:02:48]}  Nxe5 {[%clk 0:03:00]} 10. Kh1 {[%clk 0:02:48]}  a5 {[%clk 0:02:59]} 11. f4 {[%clk 0:02:47]}  Ng6 {[%clk 0:02:52]} 12. e4 {[%clk 0:02:46]}  Ra6 {[%clk 0:02:50]} 13. Bd3 {[%clk 0:02:34]}  Rd6 {[%clk 0:02:40]} 14. e5 {[%clk 0:02:31]}  Rd4 {[%clk 0:02:31]} 15. Ne2 {[%clk 0:02:24]}  Rxd3 {[%clk 0:01:39]} 16. Qxd3 {[%clk 0:02:21]}  d6 {[%clk 0:01:40]} 17. Be3 {[%clk 0:02:09]}  Bxe3 {[%clk 0:01:34]} 18. Qxe3 {[%clk 0:02:09]}  dxe5 {[%clk 0:01:34]} 19. f5 {[%clk 0:02:10]}  Nf8 {[%clk 0:01:06]} 20. f6 {[%clk 0:01:48]}  g6 {[%clk 0:01:05]} 21. Rad1 {[%clk 0:01:45]}  Bd7 {[%clk 0:01:05]} 22. Ng3 {[%clk 0:01:32]}  Qc8 {[%clk 0:01:03]} 23. Ne4 {[%clk 0:01:24]}  Bc6 {[%clk 0:01:01]} 24. Qh6 {[%clk 0:01:23]}  Ne6 {[%clk 0:01:00]} 25. Ng5 {[%clk 0:01:22]}  Bxg2+ {[%clk 0:00:15]} 26. Kxg2 {[%clk 0:01:21]}  Nf4+ {[%clk 0:00:07]} 27. Rxf4 {[%clk 0:01:21]} 1-0


[Site "https://www.chess.com"]

[Event "Titled Tuesday Blitz August 15 Late 2023"]
[White "Shapiro, Daniel"]
[Black "elpera"]
[WhiteFideId "2001780"]
[WhiteElo "2307"]
[BlackElo "2487"]
[Result "0-1"]
[Round "8"]
[TimeControl "180+1"]
[Date "2023.08.15"]
[WhiteClock "0:00:00"]
[BlackClock "0:00:14"]
[Board "93"]

1. d4 {[%clk 0:03:00]}  d5 {[%clk 0:02:57]} 2. c4 {[%clk 0:03:00]}  e6 {[%clk 0:02:57]} 3. Nf3 {[%clk 0:03:00]}  Nf6 {[%clk 0:02:57]} 4. g3 {[%clk 0:03:00]}  Be7 {[%clk 0:02:58]} 5. Bg2 {[%clk 0:03:00]}  O-O {[%clk 0:02:58]} 6. O-O {[%clk 0:03:01]}  dxc4 {[%clk 0:02:59]} 7. Ne5 {[%clk 0:03:01]}  Qd6 {[%clk 0:02:55]} 8. Nxc4 {[%clk 0:02:39]}  Qa6 {[%clk 0:02:50]} 9. Qc2 {[%clk 0:02:21]}  Nc6 {[%clk 0:02:46]} 10. Rd1 {[%clk 0:02:09]}  Rd8 {[%clk 0:02:38]} 11. e3 {[%clk 0:02:01]}  e5 {[%clk 0:02:13]} 12. Nxe5 {[%clk 0:01:50]}  Nxe5 {[%clk 0:01:28]} 13. dxe5 {[%clk 0:01:50]}  Bf5 {[%clk 0:01:28]} 14. Rxd8+ {[%clk 0:00:55]}  Rxd8 {[%clk 0:01:24]} 15. Qb3 {[%clk 0:00:51]}  Qe2 {[%clk 0:00:35]} 16. Nd2 {[%clk 0:00:16]}  Ng4 {[%clk 0:00:21]} 17. Qc4 {[%clk 0:00:12]}  Qxf2+ {[%clk 0:00:19]} 18. Kh1 {[%clk 0:00:00]}  Nxe3 {[%clk 0:00:14]} 0-1


[Site "https://www.chess.com"]

[Event "Titled Tuesday Blitz August 15 Late 2023"]
[White "Danishcrown"]
[Black "dr_tatiana"]
[WhiteElo "2079"]
[BlackElo "2446"]
[Result "0-1"]
[Round "8"]
[TimeControl "180+1"]
[Date "2023.08.15"]
[WhiteClock "0:00:46"]
[BlackClock "0:01:23"]
[Board "96"]

1. d4 {[%clk 0:03:00]}  d5 {[%clk 0:02:59]} 2. c4 {[%clk 0:02:59]}  c6 {[%clk 0:02:59]} 3. Nc3 {[%clk 0:02:58]}  Nf6 {[%clk 0:03:00]} 4. Bg5 {[%clk 0:02:56]}  Ne4 {[%clk 0:02:55]} 5. Nxe4 {[%clk 0:02:55]}  dxe4 {[%clk 0:02:55]} 6. Qd2 {[%clk 0:02:43]}  Qb6 {[%clk 0:02:48]} 7. Be3 {[%clk 0:02:40]}  Bf5 {[%clk 0:02:26]} 8. d5 {[%clk 0:02:35]}  Qa6 {[%clk 0:02:26]} 9. f3 {[%clk 0:02:29]}  cxd5 {[%clk 0:02:20]} 10. cxd5 {[%clk 0:02:24]}  e6 {[%clk 0:02:21]} 11. dxe6 {[%clk 0:02:14]}  Bxe6 {[%clk 0:02:21]} 12. O-O-O {[%clk 0:02:04]}  Nc6 {[%clk 0:02:18]} 13. b3 {[%clk 0:01:53]}  Rc8 {[%clk 0:02:06]} 14. Kb1 {[%clk 0:01:50]}  Bb4 {[%clk 0:02:05]} 15. Qb2 {[%clk 0:01:40]}  O-O {[%clk 0:01:57]} 16. Nh3 {[%clk 0:01:36]}  Ba3 {[%clk 0:01:56]} 17. Qa1 {[%clk 0:01:28]}  Nb4 {[%clk 0:01:50]} 18. Qe5 {[%clk 0:01:08]}  Bc1 {[%clk 0:01:31]} 19. a3 {[%clk 0:00:46]}  Qxa3 {[%clk 0:01:23]} 0-1


[Site "https://www.chess.com"]

[Event "Titled Tuesday Blitz August 15 Late 2023"]
[White "Karamsetty, Jeevan"]
[Black "Curtis, John"]
[WhiteFideId "2025337"]
[BlackFideId "3200256"]
[WhiteElo "2509"]
[BlackElo "2081"]
[Result "1-0"]
[Round "8"]
[TimeControl "180+1"]
[Date "2023.08.15"]
[WhiteClock "0:00:37"]
[BlackClock "0:00:00"]
[Board "97"]

1. e4 {[%clk 0:03:00]}  c5 {[%clk 0:02:59]} 2. Nc3 {[%clk 0:02:59]}  d6 {[%clk 0:02:59]} 3. g3 {[%clk 0:02:58]}  Nc6 {[%clk 0:02:58]} 4. Bg2 {[%clk 0:02:58]}  g6 {[%clk 0:02:59]} 5. d3 {[%clk 0:02:59]}  Bg7 {[%clk 0:02:59]} 6. Nge2 {[%clk 0:02:58]}  Nd4 {[%clk 0:02:52]} 7. O-O {[%clk 0:02:58]}  Bg4 {[%clk 0:02:44]} 8. f3 {[%clk 0:02:55]}  Nxe2+ {[%clk 0:02:43]} 9. Nxe2 {[%clk 0:02:53]}  Bd7 {[%clk 0:02:43]} 10. f4 {[%clk 0:02:51]}  Rb8 {[%clk 0:02:39]} 11. f5 {[%clk 0:02:50]}  gxf5 {[%clk 0:02:10]} 12. exf5 {[%clk 0:02:51]}  Bc6 {[%clk 0:02:10]} 13. Nf4 {[%clk 0:02:47]}  Nf6 {[%clk 0:02:02]} 14. c3 {[%clk 0:02:40]}  Bxg2 {[%clk 0:02:00]} 15. Kxg2 {[%clk 0:02:39]}  h5 {[%clk 0:01:55]} 16. h3 {[%clk 0:02:31]}  Qd7 {[%clk 0:01:53]} 17. Be3 {[%clk 0:02:06]}  Qxf5 {[%clk 0:01:45]} 18. Qa4+ {[%clk 0:02:05]}  Qd7 {[%clk 0:01:41]} 19. Qxa7 {[%clk 0:02:04]}  Qc6+ {[%clk 0:00:56]} 20. Kf2 {[%clk 0:01:44]}  O-O {[%clk 0:00:52]} 21. Qa3 {[%clk 0:01:43]}  e5 {[%clk 0:00:38]} 22. Ng2 {[%clk 0:01:38]}  b5 {[%clk 0:00:37]} 23. Qb3 {[%clk 0:01:31]}  b4 {[%clk 0:00:20]} 24. Qc2 {[%clk 0:01:25]}  bxc3 {[%clk 0:00:19]} 25. bxc3 {[%clk 0:01:26]}  Nd5 {[%clk 0:00:19]} 26. Rab1 {[%clk 0:01:16]}  Qd7 {[%clk 0:00:17]} 27. h4 {[%clk 0:01:04]}  f5 {[%clk 0:00:14]} 28. Bg5 {[%clk 0:01:01]}  Qf7 {[%clk 0:00:09]} 29. Kg1 {[%clk 0:00:59]}  e4 {[%clk 0:00:08]} 30. Rxb8 {[%clk 0:00:57]}  Rxb8 {[%clk 0:00:06]} 31. dxe4 {[%clk 0:00:57]}  Nxc3 {[%clk 0:00:04]} 32. exf5 {[%clk 0:00:56]}  Bd4+ {[%clk 0:00:04]} 33. Kh2 {[%clk 0:00:55]}  Qxa2 {[%clk 0:00:04]} 34. Qxa2+ {[%clk 0:00:36]}  Nxa2 {[%clk 0:00:00]} 35. Nf4 {[%clk 0:00:37]} 1-0


[Site "https://www.chess.com"]

[Event "Titled Tuesday Blitz August 15 Late 2023"]
[White "Bryant, Todd"]
[Black "Hirneise, Jens"]
[WhiteFideId "2031299"]
[BlackFideId "24614734"]
[WhiteElo "2362"]
[BlackElo "2467"]
[Result "0-1"]
[Round "8"]
[TimeControl "180+1"]
[Date "2023.08.15"]
[WhiteClock "0:00:07"]
[BlackClock "0:00:04"]
[Board "99"]

1. e4 {[%clk 0:03:00]}  d5 {[%clk 0:02:59]} 2. exd5 {[%clk 0:03:00]}  Qxd5 {[%clk 0:02:58]} 3. Nc3 {[%clk 0:03:01]}  Qa5 {[%clk 0:02:58]} 4. d4 {[%clk 0:03:01]}  Nf6 {[%clk 0:02:58]} 5. Bd2 {[%clk 0:03:02]}  c6 {[%clk 0:02:58]} 6. Bc4 {[%clk 0:03:02]}  Bg4 {[%clk 0:02:46]} 7. f3 {[%clk 0:03:01]}  Bd7 {[%clk 0:02:42]} 8. Qe2 {[%clk 0:02:52]}  Qc7 {[%clk 0:02:25]} 9. g4 {[%clk 0:02:41]}  b5 {[%clk 0:02:17]} 10. Bb3 {[%clk 0:02:35]}  b4 {[%clk 0:02:11]} 11. Ne4 {[%clk 0:02:18]}  Nxe4 {[%clk 0:02:03]} 12. Qxe4 {[%clk 0:02:13]}  e6 {[%clk 0:02:00]} 13. Ne2 {[%clk 0:01:50]}  Bd6 {[%clk 0:01:51]} 14. Bf4 {[%clk 0:01:42]}  a5 {[%clk 0:01:46]} 15. Bxd6 {[%clk 0:01:30]}  Qxd6 {[%clk 0:01:47]} 16. Ng3 {[%clk 0:01:29]}  O-O {[%clk 0:01:41]} 17. Bc4 {[%clk 0:01:11]}  Na6 {[%clk 0:01:34]} 18. Bd3 {[%clk 0:00:56]}  f5 {[%clk 0:01:32]} 19. gxf5 {[%clk 0:00:52]}  exf5 {[%clk 0:01:31]} 20. Qh4 {[%clk 0:00:38]}  Rae8+ {[%clk 0:01:23]} 21. Kf1 {[%clk 0:00:37]}  Nc7 {[%clk 0:01:23]} 22. Rg1 {[%clk 0:00:30]}  Kh8 {[%clk 0:01:18]} 23. Nh5 {[%clk 0:00:27]}  Rf7 {[%clk 0:01:06]} 24. Re1 {[%clk 0:00:24]}  Rxe1+ {[%clk 0:00:59]} 25. Kxe1 {[%clk 0:00:21]}  Qe7+ {[%clk 0:00:40]} 26. Qxe7 {[%clk 0:00:21]}  Rxe7+ {[%clk 0:00:41]} 27. Kd2 {[%clk 0:00:18]}  Nd5 {[%clk 0:00:39]} 28. c3 {[%clk 0:00:18]}  g6 {[%clk 0:00:35]} 29. Ng3 {[%clk 0:00:17]}  Nf4 {[%clk 0:00:32]} 30. Bc4 {[%clk 0:00:14]}  Kg7 {[%clk 0:00:29]} 31. a3 {[%clk 0:00:13]}  bxa3 {[%clk 0:00:21]} 32. bxa3 {[%clk 0:00:12]}  h5 {[%clk 0:00:16]} 33. Rb1 {[%clk 0:00:12]}  h4 {[%clk 0:00:16]} 34. Ne2 {[%clk 0:00:12]}  Nxe2 {[%clk 0:00:12]} 35. Bxe2 {[%clk 0:00:13]}  Be6 {[%clk 0:00:13]} 36. Rb6 {[%clk 0:00:12]}  Rc7 {[%clk 0:00:11]} 37. Ra6 {[%clk 0:00:12]}  Rb7 {[%clk 0:00:08]} 38. Kc2 {[%clk 0:00:10]}  a4 {[%clk 0:00:06]} 39. c4 {[%clk 0:00:08]}  Rb3 {[%clk 0:00:06]} 40. Rxa4 {[%clk 0:00:08]}  Re3 {[%clk 0:00:06]} 41. Kd2 {[%clk 0:00:08]}  f4 {[%clk 0:00:06]} 42. Ra6 {[%clk 0:00:08]}  Rxe2+ {[%clk 0:00:05]} 43. Kc3 {[%clk 0:00:06]}  Re3+ {[%clk 0:00:04]} 44. Kb4 {[%clk 0:00:06]}  Rxf3 {[%clk 0:00:05]} 45. Rxc6 {[%clk 0:00:06]}  Bf5 {[%clk 0:00:03]} 46. d5 {[%clk 0:00:05]}  Rd3 {[%clk 0:00:03]} 47. d6 {[%clk 0:00:04]}  f3 {[%clk 0:00:03]} 48. Rc7+ {[%clk 0:00:03]}  Kf6 {[%clk 0:00:03]} 49. Re7 {[%clk 0:00:04]}  Rxd6 {[%clk 0:00:03]} 50. Re3 {[%clk 0:00:04]}  Bg4 {[%clk 0:00:02]} 51. c5 {[%clk 0:00:04]}  Rd4+ {[%clk 0:00:02]} 52. Kb5 {[%clk 0:00:04]}  Rd1 {[%clk 0:00:03]} 53. Kc6 {[%clk 0:00:04]}  f2 {[%clk 0:00:03]} 54. Re8 {[%clk 0:00:04]}  Bf5 {[%clk 0:00:03]} 55. Rf8+ {[%clk 0:00:03]}  Kg5 {[%clk 0:00:04]} 56. Rb8 {[%clk 0:00:03]}  f1=Q {[%clk 0:00:04]} 57. Rb4 {[%clk 0:00:04]}  Qf3+ {[%clk 0:00:04]} 58. Kb6 {[%clk 0:00:05]}  Rc1 {[%clk 0:00:04]} 59. c6 {[%clk 0:00:06]}  Qxc6+ {[%clk 0:00:04]} 60. Ka7 {[%clk 0:00:06]}  Rc5 {[%clk 0:00:04]} 61. Rb6 {[%clk 0:00:07]}  Ra5+ {[%clk 0:00:04]} 62. Kb8 {[%clk 0:00:07]}  Rb5 {[%clk 0:00:05]} 63. Rb7 {[%clk 0:00:07]}  Qxb7# {[%clk 0:00:04]} 0-1


[Site "https://www.chess.com"]

[Event "Titled Tuesday Blitz August 15 Late 2023"]
[White "Pesotskiy, Mikhail"]
[Black "Harish, Neeraj"]
[WhiteFideId "34164453"]
[BlackFideId "30958130"]
[WhiteElo "2426"]
[BlackElo "2330"]
[Result "1-0"]
[Round "8"]
[TimeControl "180+1"]
[Date "2023.08.15"]
[WhiteClock "0:01:46"]
[BlackClock "0:01:32"]
[Board "101"]

1. d4 {[%clk 0:03:00]}  d5 {[%clk 0:02:59]} 2. c4 {[%clk 0:03:00]}  e6 {[%clk 0:03:00]} 3. Nc3 {[%clk 0:03:00]}  h6 {[%clk 0:03:00]} 4. Bf4 {[%clk 0:02:56]}  Nf6 {[%clk 0:03:00]} 5. Nf3 {[%clk 0:02:56]}  Bd6 {[%clk 0:03:00]} 6. Bxd6 {[%clk 0:02:53]}  Qxd6 {[%clk 0:03:01]} 7. e3 {[%clk 0:02:54]}  O-O {[%clk 0:03:01]} 8. Be2 {[%clk 0:02:53]}  dxc4 {[%clk 0:02:57]} 9. Ne5 {[%clk 0:02:53]}  c5 {[%clk 0:02:50]} 10. Nxc4 {[%clk 0:02:52]}  Qe7 {[%clk 0:02:50]} 11. dxc5 {[%clk 0:02:45]}  Qxc5 {[%clk 0:02:50]} 12. Qd6 {[%clk 0:02:45]}  Qxd6 {[%clk 0:02:40]} 13. Nxd6 {[%clk 0:02:46]}  b6 {[%clk 0:02:32]} 14. Bf3 {[%clk 0:02:45]}  Nc6 {[%clk 0:02:17]} 15. Bxc6 {[%clk 0:02:44]}  Rb8 {[%clk 0:02:18]} 16. Nxc8 {[%clk 0:02:35]}  Rbxc8 {[%clk 0:02:16]} 17. Bb5 {[%clk 0:02:31]}  Ne8 {[%clk 0:02:10]} 18. O-O {[%clk 0:02:30]}  Nc7 {[%clk 0:02:11]} 19. Bd7 {[%clk 0:02:28]}  Rcd8 {[%clk 0:02:11]} 20. Rfd1 {[%clk 0:02:28]}  Kh7 {[%clk 0:02:10]} 21. Rd6 {[%clk 0:02:23]}  Ne8 {[%clk 0:02:10]} 22. Rd2 {[%clk 0:02:22]}  Nf6 {[%clk 0:02:10]} 23. Rad1 {[%clk 0:02:22]}  g6 {[%clk 0:02:03]} 24. f3 {[%clk 0:02:22]}  Kg7 {[%clk 0:02:03]} 25. Kf2 {[%clk 0:02:23]}  h5 {[%clk 0:02:04]} 26. e4 {[%clk 0:02:23]}  Rh8 {[%clk 0:02:00]} 27. h4 {[%clk 0:02:22]}  Rhf8 {[%clk 0:01:59]} 28. e5 {[%clk 0:02:21]}  Ng8 {[%clk 0:01:59]} 29. Bb5 {[%clk 0:02:16]}  Ra8 {[%clk 0:01:59]} 30. Rd7 {[%clk 0:02:15]}  a6 {[%clk 0:01:59]} 31. Be2 {[%clk 0:02:12]}  Nh6 {[%clk 0:01:59]} 32. g4 {[%clk 0:02:09]}  hxg4 {[%clk 0:01:56]} 33. fxg4 {[%clk 0:02:10]}  b5 {[%clk 0:01:55]} 34. Rc7 {[%clk 0:02:06]}  b4 {[%clk 0:01:38]} 35. Ne4 {[%clk 0:02:05]}  Rac8 {[%clk 0:01:33]} 36. Rdd7 {[%clk 0:02:04]}  Rfd8 {[%clk 0:01:32]} 37. g5 {[%clk 0:01:47]}  Rxd7 {[%clk 0:01:31]} 38. gxh6+ {[%clk 0:01:47]}  Kxh6 {[%clk 0:01:32]} 39. Rxd7 {[%clk 0:01:46]} 1-0


[Site "https://www.chess.com"]

[Event "Titled Tuesday Blitz August 15 Late 2023"]
[White "Herman, Matthew"]
[Black "rikchessmx"]
[WhiteFideId "2028964"]
[WhiteElo "2461"]
[BlackElo "2287"]
[Result "1-0"]
[Round "8"]
[TimeControl "180+1"]
[Date "2023.08.15"]
[WhiteClock "0:00:25"]
[BlackClock "0:01:02"]
[Board "106"]

1. e4 {[%clk 0:03:00]}  c5 {[%clk 0:01:52]} 2. Nf3 {[%clk 0:02:59]}  e6 {[%clk 0:01:52]} 3. d4 {[%clk 0:02:59]}  cxd4 {[%clk 0:01:53]} 4. Nxd4 {[%clk 0:02:57]}  a6 {[%clk 0:01:53]} 5. Bd3 {[%clk 0:02:57]}  Qc7 {[%clk 0:01:51]} 6. c4 {[%clk 0:02:55]}  Nf6 {[%clk 0:01:49]} 7. Nc3 {[%clk 0:02:55]}  Bc5 {[%clk 0:01:47]} 8. Nb3 {[%clk 0:02:55]}  Ba7 {[%clk 0:01:47]} 9. Qe2 {[%clk 0:02:46]}  h5 {[%clk 0:01:46]} 10. Bg5 {[%clk 0:02:12]}  Ng4 {[%clk 0:01:45]} 11. c5 {[%clk 0:02:12]}  Bxc5 {[%clk 0:01:41]} 12. Nxc5 {[%clk 0:01:57]}  Qxc5 {[%clk 0:01:41]} 13. Nd5 {[%clk 0:01:05]}  exd5 {[%clk 0:01:36]} 14. Rc1 {[%clk 0:01:04]}  Qa5+ {[%clk 0:01:36]} 15. b4 {[%clk 0:01:05]}  Qxb4+ {[%clk 0:01:26]} 16. Bd2 {[%clk 0:01:05]}  Qa3 {[%clk 0:01:12]} 17. Rxc8+ {[%clk 0:01:03]}  Ke7 {[%clk 0:01:12]} 18. exd5+ {[%clk 0:00:45]}  Kf6 {[%clk 0:01:12]} 19. Qf3+ {[%clk 0:00:32]}  Ke7 {[%clk 0:01:09]} 20. Qe4+ {[%clk 0:00:29]}  Kf6 {[%clk 0:01:06]} 21. Qf4+ {[%clk 0:00:25]}  Ke7 {[%clk 0:01:05]} 22. Bb4+ {[%clk 0:00:24]}  Qxb4+ {[%clk 0:01:02]} 23. Qxb4+ {[%clk 0:00:25]} 1-0


[Site "https://www.chess.com"]